fUST/lending_fUST_20241225
["ID","MTS","AMOUNT","RATE_DAILY","PERIOD"]
[346561175,1735087843522,-500.0,0.00013972,2]
[346561177,1735087843532,-521.58793564,0.00013972,2]
[346561179,1735087843541,-500.0,0.00013972,2]
[346561181,1735087843550,-500.0,0.00013972,2]
[346561183,1735087843560,-500.0,0.00013972,2]
[346561185,1735087843570,-500.0,0.00013972,2]
[346561187,1735087843580,-500.0,0.00013972,2]
[346561189,1735087843590,-500.0,0.00013972,2]
[346561191,1735087843599,-500.0,0.00013972,2]
[346561193,1735087843608,-500.0,0.00013972,2]
[346561195,1735087843617,-500.0,0.00013972,2]
[346561197,1735087843626,-1518.36,0.00013972,2]
[346561199,1735087843635,-593.52,0.00013972,2]
[346561201,1735087843645,-151.0,0.00013972,2]
[346561203,1735087843654,-151.0,0.00013972,2]
[346561205,1735087843663,-151.0,0.00013972,2]
[346561207,1735087843673,-729.61,0.00013972,2]
[346561209,1735087843682,-2534.75,0.00013972,2]
[346561211,1735087843692,-500.0,0.00013972,2]
[346561213,1735087843701,-500.0,0.00013972,2]
[346561215,1735087843711,-500.0,0.00013972,2]
[346561217,1735087843720,-500.0,0.00013972,2]
[346561219,1735087843733,-257.328255,0.00013972,2]
[346561221,1735087843742,-257.328255,0.00013972,2]
[346561223,1735087843752,-257.328255,0.00013972,2]
[346561225,1735087843761,-257.328255,0.00013972,2]
[346561227,1735087843770,-500.0,0.00013972,2]
[346561229,1735087843780,-257.328255,0.00013972,2]
[346561231,1735087843790,-151.0,0.00013972,2]
[346561233,1735087843800,-257.328255,0.00013972,2]
[346561235,1735087843810,-1129.4,0.00013972,2]
[346561237,1735087843819,-151.0,0.00013972,2]
[346561239,1735087843828,-151.0,0.00013972,2]
[346561241,1735087843837,-151.0,0.00013972,2]
[346561243,1735087843847,-500.0,0.00013972,2]
[346561245,1735087843857,-151.0,0.00013972,2]
[346561247,1735087843866,-151.0,0.00013972,2]
[346561249,1735087843876,-500.0,0.00013972,2]
[346561251,1735087843885,-500.0,0.00013972,2]
[346561253,1735087843894,-500.0,0.00013972,2]
[346561255,1735087843904,-500.0,0.00013972,2]
[346561257,1735087843913,-289.18,0.00013972,2]
[346561259,1735087843922,-863.49,0.00013972,2]
[346561261,1735087843932,-845.35,0.00013972,2]
[346561263,1735087843941,-3070.88,0.00013972,2]
[346561265,1735087843950,-500.0,0.00013972,2]
[346561267,1735087843958,-500.0,0.00013972,2]
[346561269,1735087843968,-500.0,0.00013972,2]
[346561271,1735087843978,-727.28,0.00013972,2]
[346561273,1735087843987,-500.0,0.00013972,2]
[346561275,1735087843996,-500.0,0.00013972,2]
[346561277,1735087844006,-500.0,0.00013972,2]
[346561279,1735087844015,-500.0,0.00013972,2]
[346561281,1735087844024,-928.41,0.00013972,2]
[346561283,1735087844035,-500.0,0.00013972,2]
[346561285,1735087844044,-500.0,0.00013972,2]
[346561287,1735087844053,-500.0,0.00013972,2]
[346561289,1735087844062,-500.0,0.00013972,2]
[346561291,1735087844071,-791.24,0.00013972,2]
[346561293,1735087844080,-500.0,0.00013972,2]
[346561295,1735087844089,-765.63,0.00013972,2]
[346561297,1735087844099,-2063.59,0.00013972,2]
[346561298,1735087844108,-500.0,0.00013972,2]
[346561301,1735087844118,-1195.0,0.00013972,2]
[346561302,1735087844128,-500.0,0.00013972,2]
[346561305,1735087844137,-3730.16,0.00013972,2]
[346561306,1735087844147,-500.0,0.00013972,2]
[346561309,1735087844157,-1322.86,0.00013972,2]
[346561311,1735087844166,-500.0,0.00013972,2]
[346561312,1735087844175,-500.0,0.00013972,2]
[346561314,1735087844185,-6101.19,0.00013972,2]
[346561316,1735087844194,-832.67,0.00013972,2]
[346561318,1735087844204,-157.197419,0.00013972,2]
[346561321,1735087844213,-500.0,0.00013972,2]
[346561322,1735087844223,-151.0,0.00013972,2]
[346561324,1735087844233,-151.0,0.00013972,2]
[346561325,1735087844243,-151.0,0.00013972,2]
[346561326,1735087844252,-151.0,0.00013972,2]
[346561327,1735087844261,-1484.81,0.00013972,2]
[346561328,1735087844271,-515.44,0.00013972,2]
[346561329,1735087844280,-500.0,0.00013972,2]
[346561330,1735087844289,-249.52045489,0.00013972,2]
[346561331,1735087844298,-3876.87,0.00013972,2]
[346561332,1735087844307,-894.78,0.00013972,2]
[346561333,1735087844316,-500.0,0.00013972,2]
[346561334,1735087844325,-960.14,0.00013972,2]
[346561335,1735087844334,-151.0,0.00013972,2]
[346561336,1735087844343,-151.0,0.00013972,2]
[346561337,1735087844352,-151.0,0.00013972,2]
[346561338,1735087844361,-580.75283579,0.00013972,2]
[346561339,1735087844370,-2149.74,0.00013972,2]
[346561340,1735087844379,-2675.71,0.00013972,2]
[346561341,1735087844388,-500.0,0.00013972,2]
[346561343,1735087844398,-500.0,0.00013972,2]
[346561344,1735087844408,-1907.58,0.00013972,2]
[346561346,1735087844417,-500.0,0.00013972,2]
[346561348,1735087844428,-2470.91,0.00013972,2]
[346561350,1735087844437,-626.46,0.00013972,2]
[346561353,1735087844447,-500.0,0.00013972,2]
[346561355,1735087844457,-500.0,0.00013972,2]
[346561357,1735087844466,-1390.15,0.00013972,2]
[346561359,1735087844476,-1141.98,0.00013972,2]
[346561360,1735087844485,-678.35,0.00013972,2]
[346561363,1735087844495,-2690.32,0.00013972,2]
[346561365,1735087844506,-500.0,0.00013972,2]
[346561367,1735087844515,-500.0,0.00013972,2]
[346561369,1735087844525,-1361.54,0.00013972,2]
[346561371,1735087844534,-151.0,0.00013972,2]
[346561373,1735087844544,-151.0,0.00013972,2]
[346561375,1735087844553,-912.11,0.00013972,2]
[346561377,1735087844563,-151.0,0.00013972,2]
[346561379,1735087844572,-500.0,0.00013972,2]
[346561381,1735087844584,-958.53,0.00013972,2]
[346561383,1735087844593,-500.0,0.00013972,2]
[346561385,1735087844603,-1900.04,0.00013972,2]
[346561387,1735087844612,-500.0,0.00013972,2]
[346561389,1735087844622,-500.0,0.00013972,2]
[346561391,1735087844631,-500.0,0.00013972,2]
[346561393,1735087844640,-1286.54,0.00013972,2]
[346561395,1735087844649,-903.16,0.00013972,2]
[346561397,1735087844659,-687.14,0.00013972,2]
[346561399,1735087844668,-500.0,0.00013972,2]
[346561401,1735087844677,-500.0,0.00013972,2]
[346561403,1735087844687,-500.0,0.00013972,2]
[346561405,1735087844696,-500.0,0.00013972,2]
[346561407,1735087844705,-1485.26,0.00013972,2]
[346561409,1735087844714,-552.78566226,0.00013972,2]
[346561411,1735087844724,-3191.13,0.00013972,2]
[346561413,1735087844735,-1393.06,0.00013972,2]
[346561415,1735087844748,-1570.73,0.00013972,2]
[346561417,1735087844757,-1116.23,0.00013972,2]
[346561419,1735087844766,-500.0,0.00013972,2]
[346561421,1735087844776,-6055.39,0.00013972,2]
[346561424,1735087844786,-1115.61,0.00013972,2]
[346561426,1735087844796,-500.0,0.00013972,2]
[346561428,1735087844806,-635.52,0.00013972,2]
[346561430,1735087844818,-151.0,0.00013972,2]
[346561432,1735087844828,-151.0,0.00013972,2]
[346561433,1735087844839,-500.0,0.00013972,2]
[346561435,1735087844848,-151.0,0.00013972,2]
[346561437,1735087844858,-500.0,0.00013972,2]
[346561440,1735087844868,-2443.87,0.00013972,2]
[346561441,1735087844879,-500.0,0.00013972,2]
[346561443,1735087844888,-500.0,0.00013972,2]
[346561446,1735087844898,-1557.23,0.00013972,2]
[346561448,1735087844908,-500.0,0.00013972,2]
[346561449,1735087844918,-500.0,0.00013972,2]
[346561451,1735087844927,-595.29,0.00013972,2]
[346561454,1735087844937,-791.58,0.00013972,2]
[346561456,1735087844947,-500.0,0.00013972,2]
[346561458,1735087844957,-505.2878855,0.00013972,2]
[346561460,1735087844967,-500.0,0.00013972,2]
[346561462,1735087844977,-578.62848048,0.00013972,2]
[346561464,1735087844987,-672.88,0.00013972,2]
[346561465,1735087844996,-797.33,0.00013972,2]
[346561467,1735087845006,-500.0,0.00013972,2]
[346561470,1735087845017,-500.0,0.00013972,2]
[346561472,1735087845026,-500.0,0.00013972,2]
[346561473,1735087845036,-151.0,0.00013972,2]
[346561476,1735087845045,-151.0,0.00013972,2]
[346561478,1735087845054,-151.0,0.00013972,2]
[346561479,1735087845063,-1921.45,0.00013972,2]
[346561482,1735087845072,-500.0,0.00013972,2]
[346561484,1735087845082,-356.776176,0.00013972,2]
[346561486,1735087845091,-356.776176,0.00013972,2]
[346561487,1735087845100,-356.776176,0.00013972,2]
[346561489,1735087845111,-598.56,0.00013972,2]
[346561492,1735087845120,-28415.1,0.00013972,2]
[346561494,1735087845131,-500.0,0.00013972,2]
[346561495,1735087845140,-356.776176,0.00013972,2]
[346561497,1735087845150,-356.776176,0.00013972,2]
[346561499,1735087845159,-356.776176,0.00013972,2]
[346561502,1735087845168,-500.0,0.00013972,2]
[346561504,1735087845178,-500.0,0.00013972,2]
[346561506,1735087845187,-731.87,0.00013972,2]
[346561507,1735087845196,-959.26566,0.00013972,2]
[346561510,1735087845206,-3389.22,0.00013972,2]
[346561512,1735087845216,-500.0,0.00013972,2]
[346561513,1735087845226,-959.26566,0.00013972,2]
[346561515,1735087845235,-959.26566,0.00013972,2]
[346561516,1735087845245,-959.26566,0.00013972,2]
[346561519,1735087845257,-2619.71,0.00013972,2]
[346561520,1735087845268,-959.26566,0.00013972,2]
[346561522,1735087845278,-959.26566,0.00013972,2]
[346561524,1735087845288,-959.26566,0.00013972,2]
[346561526,1735087845298,-500.0,0.00013972,2]
[346561528,1735087845308,-959.26566,0.00013972,2]
[346561530,1735087845317,-500.0,0.00013972,2]
[346561532,1735087845327,-1637.23,0.00013972,2]
[346561534,1735087845336,-1415.09,0.00013972,2]
[346561536,1735087845345,-500.0,0.00013972,2]
[346561538,1735087845354,-500.0,0.00013972,2]
[346561540,1735087845365,-3693.06,0.00013972,2]
[346561542,1735087845374,-500.0,0.00013972,2]
[346561544,1735087845384,-500.0,0.00013972,2]
[346561546,1735087845393,-1597.51,0.00013972,2]
[346561548,1735087845402,-500.0,0.00013972,2]
[346561550,1735087845412,-500.0,0.00013972,2]
[346561552,1735087845422,-500.0,0.00013972,2]
[346561555,1735087845431,-500.0,0.00013972,2]
[346561557,1735087845440,-500.0,0.00013972,2]
[346561559,1735087845449,-500.0,0.00013972,2]
[346561561,1735087845459,-151.0,0.00013972,2]
[346561563,1735087845468,-151.0,0.00013972,2]
[346561565,1735087845477,-292.402873,0.00013972,2]
[346561567,1735087845486,-1599.96,0.00013972,2]
[346561569,1735087845495,-502.10018358,0.00013972,2]
[346561572,1735087845505,-9869.99,0.00013972,2]
[346561574,1735087845514,-500.0,0.00013972,2]
[346561575,1735087845523,-151.0,0.00013972,2]
[346561577,1735087845532,-151.0,0.00013972,2]
[346561579,1735087845542,-151.0,0.00013972,2]
[346561581,1735087845551,-4284.8,0.00013972,2]
[346561583,1735087845561,-500.0,0.00013972,2]
[346561585,1735087845570,-19054.98,0.00013972,2]
[346561588,1735087845582,-500.0,0.00013972,2]
[346561589,1735087845592,-85530.41,0.00013972,2]
[346561591,1735087845601,-3676.17,0.00013972,2]
[346561593,1735087845610,-748.3,0.00013972,2]
[346561595,1735087845619,-678.59,0.00013972,2]
[346561597,1735087845629,-151.0,0.00013972,2]
[346561599,1735087845638,-201.519605,0.00013972,2]
[346561601,1735087845647,-12963.32,0.00013972,2]
[346561603,1735087845657,-1584.2,0.00013972,2]
[346561605,1735087845666,-151.0,0.00013972,2]
[346561607,1735087845675,-500.0,0.00013972,2]
[346561609,1735087845684,-151.0,0.00013972,2]
[346561611,1735087845693,-151.0,0.00013972,2]
[346561613,1735087845703,-151.0,0.00013972,2]
[346561615,1735087845712,-2654.12,0.00013972,2]
[346561617,1735087845722,-799.05,0.00013972,2]
[346561619,1735087845731,-852.24,0.00013972,2]
[346561621,1735087845744,-500.0,0.00013972,2]
[346561623,1735087845754,-500.0,0.00013972,2]
[346561625,1735087845763,-688.44,0.00013972,2]
[346561627,1735087845773,-500.0,0.00013972,2]
[346561629,1735087845784,-730.2,0.00013972,2]
[346561631,1735087845794,-500.0,0.00013972,2]
[346561633,1735087845805,-722.42,0.00013972,2]
[346561635,1735087845815,-500.0,0.00013972,2]
[346561637,1735087845825,-500.0,0.00013972,2]
[346561639,1735087845835,-1698.39,0.00013972,2]
[346561641,1735087845844,-7040.7,0.00013972,2]
[346561643,1735087845853,-500.0,0.00013972,2]
[346561645,1735087845862,-500.0,0.00013972,2]
[346561647,1735087845872,-2369.65,0.00013972,2]
[346561649,1735087845881,-500.0,0.00013972,2]
[346561651,1735087845890,-500.0,0.00013972,2]
[346561653,1735087845899,-500.0,0.00013972,2]
[346561655,1735087845909,-1020.65,0.00013972,2]
[346561657,1735087845919,-500.0,0.00013972,2]
[346561659,1735087845929,-1952.64,0.00013972,2]
[346561661,1735087845938,-1210.43,0.00013972,2]
[346561663,1735087845947,-500.0,0.00013972,2]
[346561665,1735087845957,-21427.55,0.00013972,2]
[346561667,1735087845966,-1126.34,0.00013972,2]
[346561669,1735087845975,-500.0,0.00013972,2]
[346561671,1735087845989,-654.48,0.00013972,2]
[346561673,1735087845998,-500.0,0.00013972,2]
[346561674,1735087846008,-4759.53,0.00013972,2]
[346561676,1735087846017,-500.0,0.00013972,2]
[346561678,1735087846027,-937.24,0.00013972,2]
[346561680,1735087846037,-501.01268679,0.00013972,2]
[346561682,1735087846046,-164.993375,0.00013972,2]
[346561684,1735087846055,-164.993375,0.00013972,2]
[346561686,1735087846065,-164.993375,0.00013972,2]
[346561688,1735087846074,-796.94,0.00013972,2]
[346561690,1735087846083,-830.25,0.00013972,2]
[346561692,1735087846093,-500.0,0.00013972,2]
[346561694,1735087846102,-3451.83,0.00013972,2]
[346561696,1735087846111,-500.0,0.00013972,2]
[346561698,1735087846121,-1264.51,0.00013972,2]
[346561700,1735087846131,-164.993375,0.00013972,2]
[346561703,1735087846141,-164.993375,0.00013972,2]
[346561705,1735087846151,-164.993375,0.00013972,2]
[346561707,1735087846161,-1664.97,0.00013972,2]
[346561708,1735087846170,-500.0,0.00013972,2]
[346561711,1735087846179,-400.0,0.00013973,2]
[346561713,1735087846189,-500.0,0.00013983,2]
[346561725,1735087846318,-500.0,0.00013983,2]
[346561726,1735087846328,-160.0,0.00013999,3]
[346561727,1735087846337,-532.0,0.00014004,2]
[346561728,1735087846347,-2119.0,0.00014004,2]
[346561729,1735087846357,-2325.0,0.00014004,2]
[346561730,1735087846366,-160.0,0.00014027,4]
[346561731,1735087846376,-160.0,0.00014055,5]
[346561732,1735087846387,-666.0,0.00014065,2]
[346561733,1735087846396,-160.0,0.00014084,6]
[346561734,1735087846405,-321.59676,0.00014103,2]
[346561735,1735087846414,-160.0,0.00014112,7]
[346561736,1735087846424,-500.0,0.00014126,2]
[346561737,1735087846433,-160.0,0.0001414,8]
[346561738,1735087846442,-3269.34019458,0.00014146,2]
[346561739,1735087846452,-1200.0,0.00014151,2]
[346561740,1735087846462,-159.67,0.00014165,2]
[346561741,1735087846471,-151.0,0.00014165,2]
[346561742,1735087846481,-151.0,0.00014165,2]
[346561743,1735087846491,-151.0,0.00014165,2]
[346561744,1735087846500,-151.0,0.00014165,2]
[346561745,1735087846509,-151.0,0.00014165,2]
[346561746,1735087846518,-151.0,0.00014165,2]
[346561747,1735087846527,-151.0,0.00014165,2]
[346561748,1735087846537,-151.0,0.00014165,2]
[346561749,1735087846546,-151.0,0.00014165,2]
[346561750,1735087846555,-151.0,0.00014165,2]
[346561751,1735087846565,-151.0,0.00014165,2]
[346561752,1735087846574,-151.0,0.00014165,2]
[346561753,1735087846585,-151.0,0.00014165,2]
[346561754,1735087846595,-151.0,0.00014165,2]
[346561755,1735087846604,-151.0,0.00014165,2]
[346561756,1735087846614,-151.0,0.00014165,2]
[346561757,1735087846623,-151.0,0.00014165,2]
[346561758,1735087846633,-151.0,0.00014165,2]
[346561759,1735087846643,-151.0,0.00014165,2]
[346561760,1735087846651,-151.0,0.00014165,2]
[346561761,1735087846661,-151.0,0.00014165,2]
[346561762,1735087846670,-151.0,0.00014165,2]
[346561763,1735087846679,-151.0,0.00014165,2]
[346561764,1735087846689,-151.0,0.00014165,2]
[346561765,1735087846698,-151.0,0.00014165,2]
[346561766,1735087846708,-151.0,0.00014165,2]
[346561767,1735087846717,-160.0,0.00014168,9]
[346561768,1735087846728,-160.0,0.00014197,10]
[346561769,1735087846739,-2000.0,0.000142,2]
[346561770,1735087846750,-210.0,0.000142,2]
[346561771,1735087846759,-215.0,0.000142,2]
[346561772,1735087846768,-215.3473749,0.000142,3]
[346561773,1735087846779,-7762.57802719,0.0001422,2]
[346561774,1735087846789,-1000.0,0.00014221,2]
[346561775,1735087846798,-1000.0,0.00014221,2]
[346561776,1735087846807,-160.0,0.00014225,11]
[346561777,1735087846818,-500.0,0.00014235,2]
[346561778,1735087846828,-151.0,0.00014235,2]
[346561779,1735087846837,-151.0,0.00014235,2]
[346561780,1735087846847,-151.0,0.00014245,2]
[346561781,1735087846856,-160.0,0.00014245,2]
[346561782,1735087846866,-500.0,0.00014246,2]
[346561783,1735087846875,-500.0,0.00014246,2]
[346561784,1735087846885,-500.0,0.00014246,2]
[346561785,1735087846894,-151.0,0.00014246,2]
[346561786,1735087846905,-151.0,0.00014246,2]
[346561787,1735087846915,-260.94136895,0.00014246,2]
[346561788,1735087846924,-151.0,0.00014246,2]
[346561789,1735087846934,-151.0,0.00014246,2]
[346561790,1735087846943,-151.0,0.00014246,2]
[346561791,1735087846953,-500.0,0.00014246,2]
[346561792,1735087846962,-500.0,0.00014246,2]
[346561793,1735087846971,-500.0,0.00014246,2]
[346561794,1735087846981,-500.0,0.00014246,2]
[346561795,1735087846990,-500.0,0.00014246,2]
[346561796,1735087846999,-500.0,0.00014246,2]
[346561797,1735087847008,-707.35,0.00014246,2]
[346561798,1735087847018,-500.0,0.00014246,2]
[346561799,1735087847027,-500.0,0.00014246,2]
[346561800,1735087847037,-918.19,0.00014246,2]
[346561801,1735087847047,-500.0,0.00014246,2]
[346561802,1735087847056,-500.0,0.00014246,2]
[346561803,1735087847065,-618.05855716,0.00014246,2]
[346561804,1735087847075,-1163.22,0.00014246,2]
[346561805,1735087847084,-500.0,0.00014246,2]
[346561806,1735087847094,-649.86,0.00014246,2]
[346561807,1735087847103,-151.0,0.00014246,2]
[346561808,1735087847112,-151.0,0.00014246,2]
[346561809,1735087847121,-151.0,0.00014246,2]
[346561810,1735087847131,-587.89,0.00014246,2]
[346561811,1735087847141,-500.0,0.00014246,2]
[346561812,1735087847150,-151.0,0.00014246,2]
[346561813,1735087847160,-163.441989,0.00014246,2]
[346561814,1735087847169,-500.0,0.00014246,2]
[346561815,1735087847179,-923.94,0.00014246,4]
[346561816,1735087847188,-500.0,0.00014246,2]
[346561817,1735087847198,-500.0,0.00014246,2]
[346561818,1735087847207,-1289.21,0.00014246,2]
[346561819,1735087847217,-500.0,0.00014246,2]
[346561820,1735087847227,-536.19,0.00014246,2]
[346561821,1735087847237,-500.0,0.00014246,2]
[346561822,1735087847246,-500.0,0.00014246,2]
[346561823,1735087847255,-500.0,0.00014246,2]
[346561824,1735087847265,-909.09,0.00014246,2]
[346561825,1735087847274,-500.0,0.00014246,2]
[346561826,1735087847283,-500.0,0.00014246,2]
[346561827,1735087847292,-500.0,0.00014246,2]
[346561828,1735087847301,-1345.83,0.00014246,2]
[346561829,1735087847310,-870.4,0.00014246,2]
[346561830,1735087847319,-500.0,0.00014246,2]
[346561831,1735087847328,-500.0,0.00014246,2]
[346561832,1735087847338,-151.0,0.00014246,2]
[346561833,1735087847347,-151.0,0.00014246,2]
[346561834,1735087847357,-151.0,0.00014246,2]
[346561835,1735087847366,-422.91097601,0.00014246,2]
[346561855,1735087848112,-500.0,0.00013698,2]
[346561857,1735087848121,-500.0,0.00013698,2]
[346561859,1735087848132,-257.92706627,0.00013698,2]
[346561903,1735087848739,-1122.7,0.00013561,2]
[346563397,1735087993939,3000.0,0.000149,30]
[346563398,1735087994286,3000.0,0.0001491,30]
[346563399,1735087994593,3000.0,0.0001492,30]
[346563400,1735087994916,3000.0,0.0001493,30]
[346563401,1735087995415,3000.0,0.0001494,30]
[346563402,1735087995716,3000.0,0.0001495,30]
[346563403,1735087996012,3899.20937,0.0001496,30]
[346563404,1735088670356,500.0,0.00018572,120]
[346563406,1735088835096,-402.78245268,0.00011442,2]
[346563407,1735088835118,-402.78245268,0.00011558,2]
[346563408,1735088835140,-3861.7827961,0.00012449,2]
[346563409,1735088835160,-1197.3455105,0.00012622,2]
[346563410,1735088835180,-1428.1650157,0.00012653,2]
[346563411,1735088835201,-250.0,0.0001266,2]
[346563412,1735088835221,-371.988,0.0001354,2]
[346563413,1735088835241,-201.40684,0.00013598,2]
[346563414,1735088835262,-300.0,0.00013621,2]
[346563415,1735088835283,-1000.0,0.00013622,2]
[346563416,1735088835304,-300.0,0.00013681,2]
[346563417,1735088835324,-622.50378815,0.00013682,2]
[346563419,1735088947231,-402.78245268,0.00011328,2]
[346563470,1735089032227,-1149.38119756,0.00013461,2]
[346563472,1735089032237,-377.49621185,0.00013682,2]
[346563474,1735089032246,-300.0,0.00013694,2]
[346563476,1735089032255,-300.0,0.00013694,2]
[346563478,1735089032264,-2260.31941055,0.00013695,2]
[346563493,1735089032400,-745.96830908,0.00013695,2]
[346563497,1735089032423,-23397.49414712,0.00013695,2]
[346563499,1735089032434,-169.54841329,0.00013697,2]
[346563501,1735089032443,-476.02678313,0.00013697,2]
[346563503,1735089032453,-500.0,0.00013697,2]
[346563505,1735089032463,-640.02253827,0.00013697,2]
[346563507,1735089032473,-500.0,0.00013697,2]
[346563509,1735089032483,-500.0,0.00013697,2]
[346563511,1735089032492,-95.33271952,0.00013697,2]
[346563513,1735089032503,-404.66728048,0.00013697,2]
[346563514,1735089032513,-500.0,0.00013697,2]
[346563515,1735089032521,-500.0,0.00013697,2]
[346563516,1735089032530,-500.0,0.00013697,2]
[346563517,1735089032539,-500.0,0.00013697,2]
[346563518,1735089032550,-500.0,0.00013697,2]
[346563519,1735089032559,-500.0,0.00013697,2]
[346563520,1735089032568,-500.0,0.00013697,2]
[346563521,1735089032578,-500.0,0.00013697,2]
[346563522,1735089032587,-500.0,0.00013697,2]
[346563523,1735089032596,-215.54886261,0.00013697,2]
[346563574,1735089038317,-184.45113739,0.00013697,2]
[346563575,1735089038327,-500.0,0.00013697,2]
[346563576,1735089038336,-500.0,0.00013697,2]
[346563577,1735089038347,-611.98794717,0.00013697,2]
[346563578,1735089038356,-500.0,0.00013697,2]
[346563579,1735089038366,-310.94576494,0.00013697,2]
[346563580,1735089038375,-500.0,0.00013698,2]
[346563581,1735089038386,-500.0,0.00013698,2]
[346563582,1735089038400,-500.0,0.00013698,2]
[346563583,1735089038409,-500.0,0.00013698,2]
[346563584,1735089038420,-500.0,0.00013698,2]
[346563585,1735089038430,-500.0,0.00013698,2]
[346563586,1735089038440,-500.0,0.00013698,2]
[346563587,1735089038449,-500.0,0.00013698,2]
[346563588,1735089038459,-538.47,0.00013698,2]
[346563589,1735089038470,-500.0,0.00013698,2]
[346563590,1735089038480,-500.0,0.00013698,2]
[346563591,1735089038489,-444.93051766,0.00013698,2]
[346563611,1735089043203,-792.40059238,0.0001356,2]
[346563612,1735089043216,-1814.98425712,0.0001356,2]
[346563613,1735089043232,-55.06948234,0.00013698,2]
[346563614,1735089043245,-500.0,0.00013698,2]
[346563615,1735089043258,-500.0,0.00013698,2]
[346563616,1735089043269,-500.0,0.00013698,2]
[346563617,1735089043279,-281.9860327,0.00013698,2]
[346563618,1735089043288,-286.89670889,0.00013698,2]
[346563619,1735089043298,-500.0,0.00013698,2]
[346563620,1735089043307,-231.82055618,0.00013698,2]
[346563621,1735089043317,-500.0,0.00013698,2]
[346563622,1735089043327,-500.0,0.00013698,2]
[346563623,1735089043336,-500.0,0.00013698,2]
[346563624,1735089043346,-42.59797729,0.00013698,2]
[346563625,1735089043435,-457.40202271,0.00013698,2]
[346563626,1735089043445,-526.38,0.00013698,2]
[346563627,1735089043455,-668.81,0.00013698,2]
[346563628,1735089043466,-354.34053768,0.00013698,2]
[346563633,1735089046067,-150.98298675,0.00013698,2]
[346563634,1735089046078,-500.0,0.00013698,2]
[346563635,1735089046087,-186.67898352,0.00013698,2]
[346563636,1735089046291,-313.32101648,0.00013698,2]
[346563637,1735089046302,-500.0,0.00013698,2]
[346563638,1735089046311,-334.44290064,0.00013698,2]
[346563639,1735089046322,-608.67311033,0.00013698,2]
[346563641,1735089046331,-500.0,0.00013698,2]
[346563642,1735089046341,-500.0,0.00013698,2]
[346563643,1735089046350,-500.0,0.00013698,2]
[346563644,1735089046360,-500.0,0.00013698,2]
[346563645,1735089046370,-500.0,0.00013698,2]
[346563646,1735089046379,-500.0,0.00013698,2]
[346563647,1735089046390,-152.69588417,0.00013698,2]
[346563653,1735089539206,-174.18408312,0.00013363,2]
[346563654,1735089539229,-156.81191579,0.00013498,2]
[346563655,1735089539256,-356.682,0.0001354,2]
[346563656,1735089539280,-174.18408312,0.00013573,2]
[346563657,1735089539302,-174.18408312,0.00013597,2]
[346563658,1735089539325,-1149.38119756,0.00013598,2]
[346563659,1735089539347,-3447.34360605,0.00013598,2]
[346563660,1735089539371,-1000.0,0.0001367,2]
[346563661,1735089539394,-300.0,0.00013672,2]
[346563662,1735089539416,-300.0,0.00013672,2]